bitfinex/quotes_BTCUSD_20241107
["timestamp","ask_amount","ask_price","bid_price","bid_amount"]
[1731020017882,1.24216854,75742.0,75741.0,0.001436]
[1731020018298,1.22238293,75742.0,75741.0,0.001436]
[1731020018861,1.21001693,75742.0,75741.0,0.001436]
[1731020019071,1.22237956,75742.0,75741.0,0.001436]
[1731020019856,1.22236346,75742.0,75741.0,0.001436]
[1731020021453,1.11007778,75742.0,75741.0,0.001436]
[1731020021873,1.20877393,75742.0,75741.0,0.001436]
[1731020022489,1.20876894,75742.0,75741.0,0.001436]
[1731020024560,1.20874815,75742.0,75741.0,0.001436]
[1731020026056,0.1614,75724.0,75719.0,0.19868997]
[1731020026270,1.23359767,75724.0,75719.0,0.19868997]
[1731020026482,1.24595313,75724.0,75719.0,0.19868997]
[1731020027808,1.24595313,75724.0,75711.0,0.19868997]
[1731020028719,1.36443299,75724.0,75711.0,0.19868997]
[1731020028938,0.033,75710.0,75709.0,0.001494]
[1731020029154,0.21708831,75710.0,75709.0,0.001494]
[1731020029378,0.21708948,75710.0,75709.0,0.001494]
[1731020029609,0.17759648,75710.0,75709.0,0.001494]
[1731020029829,0.17757284,75710.0,75709.0,0.001494]
[1731020030251,0.16524102,75710.0,75709.0,0.001494]
[1731020032307,0.16524102,75710.0,75709.0,0.001494]
[1731020033567,0.86054102,75710.0,75709.0,0.001494]
[1731020035003,0.83754102,75710.0,75709.0,0.001494]
[1731020035219,0.83754102,75710.0,75709.0,0.048694]
[1731020039286,0.82754102,75710.0,75709.0,0.125594]
[1731020039489,0.6953,75721.0,75710.0,0.1263]
[1731020039696,0.6953,75721.0,75718.0,0.0798]
[1731020039697,0.13224102,75720.0,75718.0,0.0798]
[1731020042604,0.13224102,75720.0,75719.0,0.09869615]
[1731020042815,0.13224102,75720.0,75719.0,0.22499615]
[1731020043016,0.70906664,75727.0,75720.0,0.1313]
[1731020043226,0.03944121,75750.0,75734.0,0.1313]
[1731020043443,0.000833,75741.0,75734.0,0.005]
[1731020043675,0.000833,75741.0,75740.0,0.09869615]
[1731020043893,0.000833,75741.0,75740.0,0.22499615]
[1731020049422,0.000833,75741.0,75740.0,0.15122267]
[1731020061436,0.000833,75741.0,75740.0,0.15072267]
[1731020064339,0.000833,75741.0,75740.0,0.15238867]
[1731020067520,0.000833,75741.0,75740.0,0.10638867]
[1731020081749,0.000833,75741.0,75740.0,0.02658867]
[1731020086522,0.6953,75752.0,75746.0,0.18469615]
[1731020086752,0.03937122,75760.0,75751.0,0.09869615]
[1731020086973,0.13224102,75759.0,75751.0,0.09869615]
[1731020088063,0.09842805,75768.0,75751.0,0.09869615]
[1731020088064,0.000833,75771.0,75768.0,0.081]
[1731020088305,0.000833,75771.0,75770.0,0.09869615]
[1731020088762,0.00081086,75771.0,75770.0,0.09869615]
[1731020088990,0.00081086,75771.0,75768.0,0.08363937]
[1731020089227,0.00081086,75771.0,75770.0,0.09869615]
[1731020090822,0.00081086,75771.0,75770.0,0.10369615]
[1731020091509,0.00081086,75771.0,75770.0,0.2063354]
[1731020093534,0.00081086,75771.0,75770.0,0.23044158]
[1731020095020,0.00081086,75771.0,75770.0,0.03174543]
[1731020095221,0.00081086,75771.0,75770.0,0.23044158]
[1731020096482,0.00081086,75771.0,75770.0,0.22780233]
[1731020097709,0.00081086,75771.0,75770.0,0.13674528]
[1731020097940,0.00081086,75771.0,75770.0,0.23544143]
[1731020100329,0.00081086,75771.0,75770.0,0.03410618]
[1731020100529,0.00081086,75771.0,75770.0,0.19169615]
[1731020100741,0.00081086,75771.0,75770.0,0.3930312]
[1731020100989,0.00081086,75771.0,75770.0,0.193]
[1731020101209,0.00081086,75771.0,75770.0,0.29169615]
[1731020101431,0.00081086,75771.0,75770.0,0.39827718]
[1731020101648,0.00081086,75771.0,75770.0,0.59566948]
[1731020102148,0.19868997,75794.0,75791.0,0.083]
[1731020102348,0.19868997,75794.0,75793.0,0.105]
[1731020102463,0.05,75798.0,75794.0,0.1]
[1731020102676,0.05,75798.0,75797.0,0.20369615]
[1731020102896,0.000833,75808.0,75797.0,0.20369615]
[1731020103242,0.000833,75808.0,75797.0,0.105]
[1731020103491,0.000833,75808.0,75798.0,0.09869615]
[1731020103912,0.000833,75808.0,75797.0,0.005]
[1731020104255,0.000833,75808.0,75798.0,0.09869615]
[1731020106579,0.000833,75808.0,75798.0,0.10369615]
[1731020106916,0.000833,75808.0,75798.0,0.20633429]
[1731020109149,0.000833,75808.0,75798.0,0.00763814]
[1731020109531,0.000833,75808.0,75798.0,0.33713429]
[1731020109743,0.000833,75808.0,75798.0,0.33949615]
[1731020109934,0.000833,75808.0,75798.0,0.34328347]
[1731020110566,0.000833,75808.0,75798.0,0.35328347]
[1731020111404,0.000833,75808.0,75798.0,0.48552449]
[1731020111559,0.000833,75808.0,75798.0,0.38682834]
[1731020112390,0.000833,75808.0,75798.0,0.48052449]
[1731020112587,0.000833,75808.0,75798.0,0.47673717]
[1731020113140,0.000833,75808.0,75798.0,0.48173717]
[1731020114389,0.00073083,75799.0,75798.0,0.48173717]
[1731020115689,0.00073083,75799.0,75798.0,0.47673717]
[1731020115897,0.00073083,75799.0,75798.0,0.37804102]
[1731020116134,0.00073083,75799.0,75798.0,0.47173717]
[1731020116361,0.00073083,75799.0,75798.0,0.48173717]
[1731020117545,0.1914226,75816.0,75810.0,0.005]
[1731020117758,0.000747,75817.0,75814.0,0.005]
[1731020120254,0.000747,75817.0,75816.0,0.19869615]
[1731020121182,0.000747,75817.0,75816.0,0.09869615]
[1731020121596,0.000747,75817.0,75814.0,0.00763773]
[1731020121816,0.000747,75817.0,75814.0,0.005]
[1731020122495,0.000747,75817.0,75814.0,0.00763773]
[1731020123551,0.000747,75817.0,75816.0,0.09869615]
[1731020125215,0.000747,75817.0,75816.0,0.27879615]
[1731020126040,0.000747,75817.0,75816.0,0.1801]
[1731020126162,0.000747,75817.0,75816.0,0.27879615]
[1731020129574,0.000677,75817.0,75816.0,0.27879615]
[1731020132466,0.000677,75817.0,75816.0,0.28143356]
[1731020133014,0.000677,75817.0,75816.0,0.08273741]
[1731020133015,4.57e-05,75817.0,75816.0,0.08273741]
[1731020133235,4.57e-05,75817.0,75816.0,0.28143356]
[1731020134736,4.57e-05,75817.0,75816.0,0.18143356]
[1731020134943,4.57e-05,75817.0,75816.0,0.28143356]
[1731020135775,4.57e-05,75817.0,75816.0,0.30622762]
[1731020136017,4.57e-05,75817.0,75816.0,0.30359021]
[1731020140887,0.0004855,75817.0,75816.0,0.30359021]
[1731020143849,0.0004855,75817.0,75816.0,0.30859021]
[1731020144080,0.0004855,75817.0,75816.0,0.44083123]
[1731020144302,0.0004855,75817.0,75816.0,0.48763123]
[1731020145653,0.0004855,75817.0,75816.0,0.48929523]
[1731020147048,0.0004855,75817.0,75816.0,0.39059908]
[1731020147262,0.0004855,75817.0,75816.0,0.48929523]
[1731020150714,0.0004855,75817.0,75816.0,0.38559908]
[1731020150939,0.0004855,75817.0,75816.0,0.20655806]
[1731020151161,0.0004855,75817.0,75816.0,0.13015421]
[1731020151575,0.0004855,75817.0,75816.0,0.23015421]
[1731020152021,0.0004855,75817.0,75816.0,0.13145806]
[1731020152467,0.0004855,75817.0,75816.0,0.13135806]
[1731020152468,1.0004855,75817.0,75816.0,0.13135806]
[1731020152693,1.0004855,75817.0,75816.0,0.03135806]
[1731020152942,1.0468855,75817.0,75816.0,0.03135806]
[1731020153421,1.1282855,75817.0,75816.0,0.03135806]
[1731020155382,1.1277855,75817.0,75816.0,0.03135806]
[1731020155806,1.26002652,75817.0,75816.0,0.02645806]
[1731020156275,1.26002652,75817.0,75816.0,0.001664]
[1731020156276,1.26202652,75817.0,75816.0,0.001664]
[1731020156497,1.26002652,75817.0,75816.0,0.001664]
[1731020156713,1.40561093,75817.0,75816.0,0.001664]
[1731020156973,1.40644293,75817.0,75816.0,0.001664]
[1731020157172,0.125,75809.0,75803.0,0.0049]
[1731020157385,0.25744102,75808.0,75807.0,0.19868997]
[1731020157592,0.1232,75807.0,75799.0,0.19868997]
[1731020157801,0.0764,75805.0,75799.0,0.19868997]
[1731020158017,0.0468,75804.0,75799.0,0.22362994]
[1731020158300,0.0468,75804.0,75799.0,0.02493997]
[1731020158722,0.0468,75804.0,75790.0,0.1]
[1731020158934,0.0468,75804.0,75791.0,0.0049]
[1731020159603,0.0468,75804.0,75792.0,0.0049]
[1731020159816,0.0468,75804.0,75790.0,0.1]
[1731020160033,0.0468,75804.0,75792.0,0.0049]
[1731020160253,0.0468,75804.0,75798.0,0.02597593]
[1731020160433,0.0468,75804.0,75798.0,0.001664]
[1731020161363,0.09869615,75800.0,75798.0,0.001664]
[1731020161567,0.25884102,75799.0,75798.0,0.001664]
[1731020164268,0.28394102,75799.0,75798.0,0.001664]
[1731020164501,1.00818201,75799.0,75798.0,0.001664]
[1731020164735,1.04958054,75799.0,75798.0,0.001664]
[1731020165185,1.10887816,75799.0,75798.0,0.001664]
[1731020165414,1.10887816,75799.0,75789.0,0.19868997]
[1731020165415,0.30239607,75790.0,75789.0,0.19868997]
[1731020165636,0.43463709,75790.0,75789.0,0.19868997]
[1731020165851,0.43463709,75790.0,75779.0,0.19868997]
[1731020165852,0.1256,75780.0,75779.0,0.19868997]
[1731020166117,0.25784102,75780.0,75779.0,0.19868997]
[1731020166343,0.25584102,75780.0,75779.0,0.19868997]
[1731020166570,0.25584102,75780.0,75773.0,0.02484831]
[1731020166805,0.13424102,75779.0,75771.0,0.19868997]
[1731020167030,0.15369607,75778.0,75771.0,0.19868997]
[1731020167278,0.002,75775.0,75764.0,0.02481395]
[1731020167508,0.25584102,75774.0,75764.0,0.02481395]
[1731020167741,0.002,75771.0,75757.0,0.19868997]
[1731020167974,0.13424102,75771.0,75758.0,0.0049]
[1731020168203,0.13424102,75771.0,75757.0,0.19868997]
[1731020168433,0.97624102,75771.0,75757.0,0.19868997]
[1731020168708,0.98624102,75771.0,75757.0,0.19868997]
[1731020170091,0.1236,75761.0,75757.0,0.19868997]
[1731020170313,0.002,75758.0,75757.0,0.19868997]
[1731020170522,0.13424102,75758.0,75757.0,0.19868997]
[1731020170742,0.002,75752.0,75748.0,0.02419981]
[1731020171593,0.002,75755.0,75748.0,0.02419981]
[1731020171778,0.13224102,75754.0,75743.0,0.0049]
[1731020171993,0.13224102,75754.0,75747.0,0.0049]
[1731020172555,0.13224102,75754.0,75744.0,0.19868997]
[1731020173927,0.13224102,75754.0,75746.0,0.0049]
[1731020174364,0.13224102,75754.0,75744.0,0.19868997]
[1731020178868,0.13224102,75754.0,75744.0,0.19868997]
[1731020180694,0.13424102,75754.0,75744.0,0.20035597]
[1731020183734,0.13224102,75754.0,75744.0,0.20525597]
[1731020183956,0.13224102,75754.0,75747.0,0.0049]
[1731020185290,0.6953,75760.0,75750.0,0.0049]
[1731020185524,0.14451584,75759.0,75750.0,0.0049]
[1731020185733,0.01227482,75758.0,75750.0,0.0049]
[1731020185952,0.13224102,75757.0,75750.0,0.0049]
[1731020186566,0.01229279,75756.0,75750.0,0.0049]
[1731020186801,0.01229279,75755.0,75754.0,0.0049]
[1731020187019,0.6953,75760.0,75757.0,0.0049]
[1731020187242,0.01229404,75759.0,75757.0,0.0049]
[1731020187480,0.6953,75760.0,75757.0,0.0049]
[1731020187481,0.01229404,75758.0,75757.0,0.0049]
[1731020189773,0.01229404,75758.0,75757.0,0.02949583]
[1731020189996,0.01229404,75758.0,75757.0,0.0049]
[1731020192061,0.03197201,75758.0,75757.0,0.0049]
[1731020192959,0.04428083,75758.0,75757.0,0.0049]
[1731020194306,0.04428083,75758.0,75757.0,0.02935268]
[1731020194539,0.04428083,75758.0,75757.0,0.0049]
[1731020196142,0.04435572,75758.0,75757.0,0.0049]
[1731020196593,0.04437296,75758.0,75757.0,0.0049]
[1731020197637,0.04437296,75758.0,75757.0,0.02974304]
[1731020198061,0.04437296,75758.0,75757.0,0.0049]
[1731020198554,0.0443505,75758.0,75757.0,0.0049]
[1731020198984,0.0443505,75758.0,75757.0,0.029026]
[1731020199193,0.0443505,75758.0,75757.0,0.0049]
[1731020200086,0.03206414,75758.0,75757.0,0.0049]
[1731020203832,0.03207566,75758.0,75757.0,0.0049]
[1731020204250,0.01233679,75758.0,75757.0,0.0049]
[1731020204454,0.01233679,75758.0,75757.0,0.006566]
[1731020205483,0.01223979,75758.0,75757.0,0.006566]
[1731020206860,0.03916184,75762.0,75757.0,0.006566]
[1731020207078,0.17129676,75762.0,75757.0,0.006566]
[1731020207574,0.13224102,75762.0,75757.0,0.006566]
[1731020208404,0.19098379,75762.0,75757.0,0.006566]
[1731020209458,0.05874277,75761.0,75757.0,0.006566]
[1731020210423,0.05874277,75760.0,75757.0,0.006566]
[1731020210647,0.01234452,75759.0,75757.0,0.006566]
[1731020210925,0.01234452,75758.0,75757.0,0.006566]
[1731020213084,0.01225052,75758.0,75757.0,0.006566]
[1731020214101,0.0592169,75765.0,75764.0,0.0829]
[1731020214367,0.0592169,75767.0,75766.0,0.0049]
[1731020214567,0.00080817,75770.0,75769.0,0.0049]
[1731020214686,0.00080817,75770.0,75769.0,0.00753931]
[1731020215090,0.00080817,75770.0,75769.0,0.09063931]
[1731020215293,0.00080817,75770.0,75769.0,0.19063931]
[1731020216568,0.00080817,75770.0,75769.0,0.198]
[1731020216983,0.00080817,75770.0,75769.0,0.188]
[1731020217214,0.00080817,75770.0,75769.0,0.198]
[1731020217417,0.00080817,75770.0,75769.0,0.2221375]
[1731020218267,0.00080817,75770.0,75769.0,0.32083802]
[1731020222987,0.00080817,75770.0,75769.0,0.1290375]
[1731020223192,0.00080817,75770.0,75769.0,0.0340375]
[1731020223302,0.00080817,75770.0,75769.0,0.23273802]
[1731020226894,0.00080817,75770.0,75769.0,0.1340375]
[1731020227100,0.00080817,75770.0,75769.0,0.23273802]
[1731020231085,0.00080817,75770.0,75769.0,0.1340375]
[1731020231267,0.00080817,75770.0,75769.0,0.13273802]
[1731020231719,0.00080817,75770.0,75769.0,0.23273802]
[1731020232136,0.00080817,75770.0,75769.0,0.22773802]
[1731020232345,0.00080817,75770.0,75769.0,0.23273802]
[1731020236000,0.00080817,75770.0,75769.0,0.0340375]
[1731020236260,0.00080817,75770.0,75769.0,0.23273802]
[1731020237807,0.00080817,75770.0,75769.0,0.0290375]
[1731020238013,0.00080817,75770.0,75769.0,0.0241375]
[1731020238235,0.00080817,75770.0,75769.0,0.0290375]
[1731020238440,0.00080817,75770.0,75769.0,0.0049]
[1731020238661,0.00080817,75770.0,75769.0,0.001666]
[1731020238892,0.00080817,75770.0,75769.0,0.006566]
[1731020239309,0.00080817,75770.0,75769.0,0.10526652]
[1731020239719,0.00080817,75770.0,75769.0,0.20526652]
[1731020240312,0.00080817,75770.0,75769.0,0.20036652]
[1731020240521,0.00080817,75770.0,75769.0,0.20526652]
[1731020243126,0.00067568,75770.0,75769.0,0.20526652]
[1731020248357,0.00067568,75770.0,75769.0,0.001666]
[1731020249530,0.00067568,75770.0,75769.0,0.006566]
[1731020252332,0.00067568,75770.0,75769.0,0.001666]
[1731020252533,0.00067568,75770.0,75769.0,0.006566]
[1731020253380,0.00067568,75770.0,75769.0,0.001666]
[1731020254243,0.00067568,75770.0,75769.0,0.006566]
[1731020257177,0.00067568,75770.0,75769.0,0.001666]
[1731020259413,0.07097568,75775.0,75769.0,0.001666]
[1731020259638,0.13224102,75774.0,75769.0,0.001666]
[1731020261456,0.13307402,75774.0,75769.0,0.001666]
[1731020267947,0.002,75770.0,75769.0,0.001666]
[1731020268210,0.13307402,75774.0,75769.0,0.001666]
[1731020278600,0.002,75772.0,75769.0,0.001666]
[1731020278851,0.13224102,75772.0,75769.0,0.001666]
[1731020280028,0.13424102,75772.0,75769.0,0.001666]
[1731020280248,0.13224102,75772.0,75769.0,0.001666]
[1731020280683,0.000833,75774.0,75769.0,0.001666]
[1731020280684,0.13224102,75771.0,75769.0,0.001666]
[1731020280938,0.0495,75770.0,75769.0,0.001666]
[1731020281153,0.18174102,75770.0,75769.0,0.001666]
[1731020287677,0.22124215,75770.0,75769.0,0.001666]
[1731020289564,0.18174102,75770.0,75769.0,0.001666]
[1731020290448,0.22124215,75770.0,75769.0,0.001666]
[1731020290660,0.18174102,75770.0,75769.0,0.001666]
[1731020292245,0.18374102,75770.0,75769.0,0.001666]
[1731020292459,0.18174102,75770.0,75769.0,0.001666]
[1731020292924,0.13224102,75770.0,75769.0,0.001666]
[1731020293596,0.13424102,75770.0,75769.0,0.001666]
[1731020294097,0.13224102,75770.0,75769.0,0.001666]
[1731020294967,0.14458137,75770.0,75769.0,0.001666]
[1731020295438,0.14658137,75770.0,75769.0,0.001666]
[1731020298114,0.13424102,75770.0,75769.0,0.001666]
[1731020298345,0.13224102,75770.0,75769.0,0.001666]
[1731020298774,0.13421671,75770.0,75769.0,0.001666]
[1731020298983,0.14655646,75770.0,75769.0,0.001666]
[1731020299452,0.14455646,75770.0,75769.0,0.001666]
[1731020300772,0.14655646,75770.0,75769.0,0.001666]
[1731020301002,0.13421671,75770.0,75769.0,0.001666]
[1731020301257,0.13221671,75770.0,75769.0,0.001666]
[1731020307139,0.000833,75774.0,75773.0,0.32480052]
[1731020308059,0.000833,75774.0,75773.0,0.42350104]
[1731020308490,0.000833,75774.0,75773.0,0.56074206]
[1731020308705,0.6953,75796.0,75794.0,0.076]
[1731020308922,0.19868997,75797.0,75796.0,0.0049]
[1731020309136,0.00197917,75800.0,75799.0,0.0049]
[1731020309402,0.00197917,75800.0,75799.0,0.10360052]
[1731020310344,0.6953,75810.0,75804.0,0.0049]
[1731020310560,0.13224102,75809.0,75804.0,0.0049]
[1731020312388,0.000833,75816.0,75813.0,0.0049]
[1731020312823,0.000833,75816.0,75815.0,0.0049]
[1731020314201,0.13307402,75816.0,75809.0,0.0049]
[1731020314410,0.13224102,75815.0,75809.0,0.0049]
[1731020316198,0.13424102,75815.0,75809.0,0.0049]
[1731020316627,0.13224102,75815.0,75809.0,0.0049]
[1731020316842,0.13424102,75815.0,75809.0,0.0049]
[1731020317322,0.13224102,75815.0,75809.0,0.0049]
[1731020319711,0.13307402,75815.0,75809.0,0.0049]
[1731020323474,0.13307402,75815.0,75807.0,0.0049]
[1731020324091,0.20947402,75815.0,75807.0,0.0049]
[1731020324960,0.20947402,75815.0,75804.0,0.12914138]
[1731020325404,0.20947402,75815.0,75807.0,0.0049]
[1731020325853,0.20947402,75815.0,75804.0,0.12424138]
[1731020325854,0.20947402,75815.0,75804.0,0.12914138]
[1731020326333,0.20947402,75815.0,75804.0,0.02424138]
[1731020326820,0.002,75813.0,75803.0,0.19868997]
[1731020327041,0.17994102,75812.0,75804.0,0.19868997]
[1731020327282,0.002,75810.0,75804.0,0.19868997]
[1731020327507,0.002,75805.0,75804.0,0.19868997]
[1731020327704,0.13424102,75805.0,75804.0,0.19868997]
[1731020327946,0.13424102,75805.0,75795.0,0.20358997]
[1731020327947,0.002,75799.0,75795.0,0.20358997]
[1731020328157,0.002,75800.0,75795.0,0.20358997]
[1731020328384,0.002,75799.0,75795.0,0.20358997]
[1731020328621,0.13424102,75800.0,75795.0,0.20358997]
[1731020329325,0.13224102,75800.0,75795.0,0.22827961]
[1731020332575,0.13224102,75800.0,75795.0,0.02958964]
[1731020339572,0.002,75799.0,75795.0,0.02958964]
[1731020339772,0.13424102,75800.0,75795.0,0.02958964]
[1731020340019,0.13224102,75800.0,75795.0,0.02958964]
[1731020342323,1.0759175,75817.0,75803.0,0.0049]
[1731020342530,0.13224102,75814.0,75807.0,0.0049]
[1731020346583,0.13224102,75814.0,75807.0,0.03002411]
[1731020346913,0.13224102,75814.0,75807.0,0.0049]
[1731020350504,0.13224102,75814.0,75807.0,0.02931995]
[1731020351891,0.03927071,75813.0,75807.0,0.02931995]
[1731020352112,0.13224102,75812.0,75807.0,0.02931995]
[1731020352542,0.03927071,75811.0,75807.0,0.02931995]
[1731020352753,0.17151173,75811.0,75807.0,0.02931995]
[1731020353624,0.03927071,75810.0,75807.0,0.02931995]
[1731020354495,0.03927071,75810.0,75809.0,0.20358997]
[1731020354720,0.000833,75815.0,75813.0,0.0049]
[1731020354951,0.000833,75815.0,75814.0,0.10360052]
[1731020356554,0.000833,75815.0,75814.0,0.0049]
[1731020364414,0.000833,75815.0,75813.0,0.0049]
[1731020364632,0.000833,75815.0,75811.0,0.0049]
[1731020365086,0.000833,75815.0,75812.0,0.0049]
[1731020365938,0.000833,75815.0,75813.0,0.0049]
[1731020366148,0.000833,75815.0,75812.0,0.0049]
[1731020367978,0.000833,75815.0,75811.0,0.0049]
[1731020368460,0.000833,75815.0,75812.0,0.0049]
[1731020376168,0.000833,75815.0,75808.0,0.1]
[1731020376169,0.000833,75815.0,75814.0,0.0049]
[1731020376416,0.000833,75815.0,75814.0,0.0846]
[1731020376586,0.000833,75815.0,75814.0,0.18330052]
[1731020381594,0.000833,75815.0,75814.0,0.0049]
[1731020382035,0.000833,75815.0,75814.0,0.02918903]
[1731020382294,0.000833,75815.0,75814.0,0.0049]
[1731020387837,0.000833,75815.0,75814.0,0.0863]
[1731020388956,0.000833,75815.0,75814.0,0.68043151]
[1731020389170,0.000833,75816.0,75815.0,0.20860052]
[1731020389380,0.78036225,75817.0,75816.0,0.2508]
[1731020389622,0.32868054,75817.0,75816.0,0.38304102]
[1731020389823,0.00197822,75838.0,75837.0,0.1863]
[1731020390079,0.00197822,75838.0,75837.0,0.38633797]
[1731020390288,0.00197822,75838.0,75837.0,0.38370104]
[1731020390696,0.0201917,75849.0,75837.0,0.38370104]
[1731020390921,0.0201917,75849.0,75845.0,0.09870052]
[1731020391118,0.0201917,75849.0,75845.0,0.10360052]
[1731020391960,0.0201917,75849.0,75845.0,0.0049]
[1731020392184,0.0201917,75849.0,75845.0,0.10360052]
[1731020392373,0.0201917,75849.0,75845.0,0.0049]
[1731020392572,0.0201917,75849.0,75845.0,0.10360052]
[1731020394309,0.0201917,75849.0,75845.0,0.12784299]
[1731020395852,0.0201917,75849.0,75845.0,0.02914247]
[1731020400733,0.0201917,75849.0,75845.0,0.11307908]
[1731020400962,0.0201917,75849.0,75845.0,0.21307908]
[1731020401520,0.005,75871.0,75845.0,0.21307908]
[1731020401521,0.46,75875.0,75874.0,0.0049]
[1731020401745,0.000747,75885.0,75881.0,0.0049]
[1731020401954,0.000747,75885.0,75884.0,0.10360052]
[1731020402162,0.000747,75885.0,75884.0,0.0049]
[1731020403260,0.13298802,75885.0,75877.0,0.0049]
[1731020403477,0.13298802,75885.0,75862.0,0.005]
[1731020403478,0.005,75879.0,75862.0,0.0049]
[1731020403731,0.18338172,75883.0,75857.0,0.0049]
[1731020403732,0.005,75871.0,75857.0,0.0049]
[1731020403927,0.1273,75874.0,75852.0,0.0049]
[1731020403928,0.18328172,75868.0,75852.0,0.0049]
[1731020404143,0.32062274,75868.0,75852.0,0.0049]
[1731020404397,0.32062274,75868.0,75846.0,0.19868997]
[1731020404398,0.005,75863.0,75846.0,0.19868997]
[1731020404639,0.002,75858.0,75846.0,0.19868997]
[1731020405072,0.0463,75857.0,75846.0,0.19868997]
[1731020405492,0.0458,75857.0,75846.0,0.19868997]
[1731020405727,0.13224102,75856.0,75846.0,0.19868997]
[1731020405949,0.13424102,75856.0,75846.0,0.19868997]
[1731020406178,0.13224102,75856.0,75846.0,0.19868997]
[1731020406895,0.13424102,75856.0,75846.0,0.19868997]
[1731020407517,0.13224102,75856.0,75846.0,0.19868997]
[1731020412027,0.002,75854.0,75846.0,0.19868997]
[1731020412232,0.13224102,75853.0,75846.0,0.19868997]
[1731020412475,0.13224102,75853.0,75846.0,0.20035397]
[1731020413103,0.13224102,75853.0,75846.0,0.001664]
[1731020413319,0.13424102,75853.0,75846.0,0.001664]
[1731020413741,0.13224102,75853.0,75846.0,0.001664]
[1731020414565,0.002,75851.0,75846.0,0.001664]
[1731020414795,0.13224102,75850.0,75848.0,0.19868997]
[1731020415009,0.13224102,75850.0,75846.0,0.001664]
[1731020416940,0.15328172,75849.0,75846.0,0.001664]
[1731020417193,0.002,75847.0,75846.0,0.001664]
[1731020417408,0.13224102,75847.0,75846.0,0.001664]
[1731020417649,0.20794102,75847.0,75846.0,0.001664]
[1731020418076,0.23094102,75847.0,75846.0,0.001664]
[1731020418285,0.27864102,75847.0,75846.0,0.001664]
[1731020418508,0.28864102,75847.0,75846.0,0.001664]
[1731020418754,0.39064102,75847.0,75846.0,0.001664]
[1731020418967,0.028,75828.0,75818.0,0.19868997]
[1731020419186,0.0281,75828.0,75818.0,0.19868997]
[1731020419416,0.0331,75828.0,75818.0,0.19868997]
[1731020419854,0.023,75827.0,75818.0,0.19868997]
[1731020420522,0.0101,75828.0,75818.0,0.19868997]
[1731020420523,0.0331,75828.0,75818.0,0.19868997]
[1731020420744,0.0817,75838.0,75826.0,0.20358997]
[1731020420977,0.13224102,75837.0,75832.0,0.0049]
[1731020421188,0.1135342,75850.0,75832.0,0.0049]
[1731020421189,0.0588342,75853.0,75847.0,0.0049]
[1731020421410,0.0392228,75869.0,75851.0,0.0049]
[1731020421636,0.005,75874.0,75855.0,0.0049]
[1731020421874,0.13224102,75866.0,75860.0,0.0049]
[1731020423125,0.28552274,75866.0,75855.0,0.0049]
[1731020423362,0.28552274,75866.0,75856.0,0.0049]
[1731020423549,0.28552274,75866.0,75855.0,0.0049]
[1731020424138,0.28552274,75866.0,75853.0,0.20358997]
[1731020424337,0.28635474,75866.0,75853.0,0.20358997]
[1731020424569,0.28635474,75866.0,75855.0,0.0049]
[1731020424780,0.15328172,75860.0,75853.0,0.19868997]
[1731020424932,0.13224102,75859.0,75846.0,0.001664]
[1731020425324,0.13224102,75859.0,75849.0,0.19868997]
[1731020425325,0.15328172,75854.0,75849.0,0.19868997]
[1731020425533,0.13224102,75853.0,75849.0,0.19868997]
[1731020426151,0.002,75850.0,75849.0,0.19868997]
[1731020426362,0.13224102,75850.0,75849.0,0.19868997]
[1731020426578,0.13224102,75850.0,75846.0,0.001664]
[1731020426795,0.13224102,75849.0,75846.0,0.001664]
[1731020435752,0.13307302,75849.0,75846.0,0.001664]
[1731020450521,0.0001,75847.0,75846.0,0.001664]
[1731020450743,0.31862274,75847.0,75846.0,0.001664]
[1731020450956,0.3579297,75847.0,75846.0,0.001664]
[1731020451192,0.31862274,75847.0,75846.0,0.001664]
[1731020451827,0.32062274,75847.0,75846.0,0.001664]
[1731020457973,0.13224102,75847.0,75846.0,0.001664]
[1731020461578,0.000832,75849.0,75846.0,0.006564]
[1731020461783,0.000832,75849.0,75848.0,0.0049]
[1731020462212,0.000832,75849.0,75848.0,0.0876]
[1731020462894,0.000832,75849.0,75848.0,0.1876]
[1731020464577,0.000832,75849.0,75848.0,0.19023652]
[1731020465125,0.000832,75849.0,75848.0,0.19523652]
[1731020465323,0.000832,75849.0,75848.0,0.19523642]
[1731020465541,0.000832,75849.0,75848.0,0.32747744]
[1731020465733,0.000832,75866.0,75865.0,0.0049]
[1731020465936,0.000832,75866.0,75865.0,0.34558172]
[1731020466190,0.000832,75866.0,75865.0,0.53342274]
[1731020468845,0.000832,75866.0,75865.0,0.38014102]
[1731020469043,0.000832,75866.0,75865.0,0.53342274]
[1731020469657,0.000747,75885.0,75884.0,0.0049]
[1731020469846,0.000747,75885.0,75884.0,0.39198172]
[1731020469958,0.000747,75885.0,75884.0,0.2387]
[1731020470165,0.000747,75885.0,75884.0,0.5268578]
[1731020470380,0.000747,75885.0,75884.0,0.52422274]
[1731020471004,0.000747,75885.0,75884.0,0.39198172]
[1731020472094,0.000747,75885.0,75884.0,0.38698172]
[1731020472316,0.000747,75885.0,75884.0,0.2387]
[1731020473182,0.000747,75885.0,75884.0,0.2584145]
[1731020473387,0.000747,75885.0,75884.0,0.2125145]
[1731020473588,0.000747,75885.0,75884.0,0.0296145]
[1731020479630,0.000747,75885.0,75884.0,0.0247145]
[1731020479864,0.000747,75885.0,75883.0,0.0049]
[1731020480076,0.000747,75885.0,75884.0,0.0049]
[1731020480747,0.000747,75885.0,75880.0,0.0049]
[1731020481172,0.000747,75885.0,75884.0,0.0049]
[1731020481380,0.000747,75885.0,75871.0,0.005]
[1731020481381,0.13298802,75885.0,75880.0,0.0049]
[1731020481592,0.13224102,75884.0,75880.0,0.0049]
[1731020483439,0.13174102,75884.0,75880.0,0.0049]
[1731020487285,0.000747,75885.0,75884.0,0.0049]
[1731020487492,0.000747,75885.0,75884.0,0.11253573]
[1731020487718,0.000747,75885.0,75884.0,0.33341125]
[1731020487947,0.000747,75885.0,75884.0,0.33077552]
[1731020488179,0.000747,75885.0,75884.0,0.45472274]
[1731020489079,0.000747,75891.0,75886.0,0.0199]
[1731020490836,0.000747,75891.0,75886.0,0.17318172]
[1731020491056,0.000747,75891.0,75886.0,0.27318172]
[1731020491271,0.000747,75891.0,75886.0,0.40805762]
[1731020491493,0.000747,75891.0,75886.0,0.40542274]
[1731020491712,0.000747,75891.0,75886.0,0.48202274]